[Event "*** Titled Tuesday Blitz"]
[Site "Chess.com"]
[Date "2021.02.09"]
[Round "1"]
[White "Cuajada_Zero"]
[Black "Gerodot71"]
[Result "0-1"]
[WhiteElo "2198"]
[BlackElo "2518"]
[TimeControl "180+1"]
[EndTime "10:09:12 PST"]
[Termination "Gerodot71 won on time"]

1. d4 {[%clk 0:02:58.7]} 1... Nf6 {[%clk 0:02:58.4]} 2. c4 {[%clk 0:02:58.1]}
2... e6 {[%clk 0:02:58.8]} 3. Nc3 {[%clk 0:02:57.2]} 3... Bb4 {[%clk 0:02:59.3]}
4. e3 {[%clk 0:02:55.4]} 4... d5 {[%clk 0:02:56.4]} 5. Ne2 {[%clk 0:02:53.1]}
5... dxc4 {[%clk 0:02:50.6]} 6. a3 {[%clk 0:02:52]} 6... Be7 {[%clk 0:02:48.6]}
7. Qa4+ {[%clk 0:02:24.8]} 7... Nbd7 {[%clk 0:02:45.3]} 8. g3 {[%clk 0:02:15.2]}
8... O-O {[%clk 0:02:37]} 9. Qxc4 {[%clk 0:02:12.1]} 9... c5 {[%clk 0:02:34.3]}
10. Bg2 {[%clk 0:02:10]} 10... cxd4 {[%clk 0:02:33.5]} 11. Nxd4 {[%clk
0:02:06.9]} 11... Ne5 {[%clk 0:02:33.2]} 12. Qe2 {[%clk 0:01:57.1]} 12... Bd7
{[%clk 0:02:32.8]} 13. O-O {[%clk 0:01:55.6]} 13... Qb6 {[%clk 0:02:30.7]} 14.
Rd1 {[%clk 0:01:52.3]} 14... Rac8 {[%clk 0:02:24.3]} 15. h3 {[%clk 0:01:38.2]}
15... Rfd8 {[%clk 0:02:16.5]} 16. Bd2 {[%clk 0:00:35]} 16... Nc6 {[%clk
0:02:05.7]} 17. Be1 {[%clk 0:00:20.6]} 17... Nxd4 {[%clk 0:01:49.8]} 18. Rxd4
{[%clk 0:00:21.5]} 18... Bc6 {[%clk 0:01:48.9]} 19. Rxd8+ {[%clk 0:00:21.1]}
19... Rxd8 {[%clk 0:01:47.4]} 20. Rd1 {[%clk 0:00:17.5]} 20... Rxd1 {[%clk
0:01:44.2]} 21. Nxd1 {[%clk 0:00:16.6]} 21... Bxg2 {[%clk 0:01:44.6]} 22. Kxg2
{[%clk 0:00:16]} 22... h5 {[%clk 0:01:45.1]} 23. Bc3 {[%clk 0:00:15.8]} 23... g6
{[%clk 0:01:39.7]} 24. f3 {[%clk 0:00:13.4]} 24... Nd5 {[%clk 0:01:39.6]} 25.
Bd4 {[%clk 0:00:12.3]} 25... Qb3 {[%clk 0:01:39.1]} 26. Nf2 {[%clk 0:00:08.7]}
26... a6 {[%clk 0:01:16.7]} 27. e4 {[%clk 0:00:08.9]} 27... Nb6 {[%clk 0:01:10]}
28. Qd3 {[%clk 0:00:08]} 28... Qxd3 {[%clk 0:01:07.8]} 29. Nxd3 {[%clk
0:00:08.9]} 29... Nc4 {[%clk 0:01:08.7]} 30. Kf2 {[%clk 0:00:05.9]} 30... f6
{[%clk 0:01:06.3]} 31. g4 {[%clk 0:00:05.7]} 31... e5 {[%clk 0:01:06.1]} 32. Bc3
{[%clk 0:00:05.4]} 32... Kf7 {[%clk 0:01:06]} 33. Ke2 {[%clk 0:00:05.4]} 33...
Ke6 {[%clk 0:01:05.7]} 34. a4 {[%clk 0:00:05.2]} 34... Nb6 {[%clk 0:01:02]} 35.
b3 {[%clk 0:00:05.3]} 35... Nd7 {[%clk 0:01:00.1]} 36. Nb2 {[%clk 0:00:05]}
36... b5 {[%clk 0:00:58.5]} 37. axb5 {[%clk 0:00:04.8]} 37... axb5 {[%clk
0:00:59.4]} 38. b4 {[%clk 0:00:04.4]} 38... Nb6 {[%clk 0:00:57.4]} 39. Kd3
{[%clk 0:00:03.7]} 39... Kd7 {[%clk 0:00:56.1]} 40. Kc2 {[%clk 0:00:04]} 40...
Kc6 {[%clk 0:00:56.1]} 41. Kb3 {[%clk 0:00:04.5]} 41... Bd6 {[%clk 0:00:41]} 42.
Bd2 {[%clk 0:00:04.8]} 42... Be7 {[%clk 0:00:40]} 43. Be3 {[%clk 0:00:05.1]}
43... Nc8 {[%clk 0:00:37.7]} 44. Nd3 {[%clk 0:00:05.4]} 44... Nd6 {[%clk
0:00:36.1]} 45. Bc5 {[%clk 0:00:05.2]} 45... Nc8 {[%clk 0:00:25.1]} 46. Kc3
{[%clk 0:00:03.5]} 46... Bd8 {[%clk 0:00:14.3]} 47. Be3 {[%clk 0:00:03.2]} 47...
Nd6 {[%clk 0:00:12.5]} 48. Nb2 {[%clk 0:00:02.1]} 48... f5 {[%clk 0:00:11.1]}
49. gxf5 {[%clk 0:00:02]} 49... gxf5 {[%clk 0:00:12]} 50. exf5 {[%clk
0:00:02.5]} 50... Bf6 {[%clk 0:00:11.9]} 51. Bc5 {[%clk 0:00:02.7]} 51... e4+
{[%clk 0:00:11.1]} 52. Bd4 {[%clk 0:00:02.6]} 52... Bxd4+ {[%clk 0:00:09.9]} 53.
Kxd4 {[%clk 0:00:03.5]} 53... exf3 {[%clk 0:00:10.8]} 54. Ke3 {[%clk 0:00:03.9]}
54... Nxf5+ {[%clk 0:00:10.7]} 55. Kxf3 {[%clk 0:00:03.9]} 55... Kd5 {[%clk
0:00:10.9]} 56. Kf4 {[%clk 0:00:04.2]} 56... Nd4 {[%clk 0:00:10.9]} 57. Kg5
{[%clk 0:00:03.3]} 57... Ke4 {[%clk 0:00:09.6]} 58. Kxh5 {[%clk 0:00:03.5]}
58... Ke3 {[%clk 0:00:09.8]} 59. Kg5 {[%clk 0:00:02.4]} 59... Kd2 {[%clk
0:00:10.2]} 60. h4 {[%clk 0:00:02.3]} 60... Kc2 {[%clk 0:00:09.9]} 61. h5 {[%clk
0:00:01.7]} 61... Kxb2 {[%clk 0:00:09.1]} 62. Kf6 {[%clk 0:00:02.2]} 62... Kc3
{[%clk 0:00:04.7]} 63. h6 {[%clk 0:00:02.7]} 63... Kxb4 {[%clk 0:00:05.3]} 64.
h7 {[%clk 0:00:03.3]} 64... Kc3 {[%clk 0:00:05.9]} 65. h8=Q {[%clk 0:00:03.4]}
65... b4 {[%clk 0:00:06.8]} 66. Qc8+ {[%clk 0:00:03.5]} 66... Kb2 {[%clk
0:00:05.5]} 67. Ke5 {[%clk 0:00:03.5]} 67... Nc2 {[%clk 0:00:05]} 68. Ke4 {[%clk
0:00:03.6]} 68... b3 {[%clk 0:00:05.2]} 69. Kd3 {[%clk 0:00:03.8]} 69... Nb4+
{[%clk 0:00:05.6]} 70. Kc4 {[%clk 0:00:04.1]} 70... Nc2 {[%clk 0:00:04.3]} 71.
Qh8+ {[%clk 0:00:03.8]} 71... Ka2 {[%clk 0:00:03.4]} 72. Kc3 {[%clk 0:00:03.4]}
72... b2 {[%clk 0:00:03.1]} 73. Qa8+ {[%clk 0:00:02.5]} 73... Na3 {[%clk
0:00:03.4]} 74. Qg8+ {[%clk 0:00:01.5]} 74... Ka1 {[%clk 0:00:03.7]} 0-1

[Event "*** Titled Tuesday Blitz"]
[Site "Chess.com"]
[Date "2021.02.09"]
[Round "2"]
[White "volkanyirik"]
[Black "MerryPoppies"]
[Result "1-0"]
[WhiteElo "2420"]
[BlackElo "2186"]
[TimeControl "180+1"]
[EndTime "10:12:04 PST"]
[Termination "volkanyirik won by resignation"]

1. e4 {[%clk 0:03:00.9]} 1... e5 {[%clk 0:02:53.1]} 2. Nc3 {[%clk 0:03:01.8]}
2... Nc6 {[%clk 0:02:52.9]} 3. Nf3 {[%clk 0:02:58.6]} 3... Nf6 {[%clk
0:02:52.2]} 4. d4 {[%clk 0:02:58.3]} 4... exd4 {[%clk 0:02:45.6]} 5. Nxd4 {[%clk
0:02:59.2]} 5... Bb4 {[%clk 0:02:41.9]} 6. Nxc6 {[%clk 0:02:58.9]} 6... Bxc3+
{[%clk 0:02:39.9]} 7. bxc3 {[%clk 0:02:54.2]} 7... dxc6 {[%clk 0:02:40.2]} 8.
Qxd8+ {[%clk 0:02:53.2]} 8... Kxd8 {[%clk 0:02:40.5]} 9. Bg5 {[%clk 0:02:53.5]}
9... Ke7 {[%clk 0:02:36.3]} 10. e5 {[%clk 0:02:52.8]} 10... h6 {[%clk
0:02:36.5]} 11. exf6+ {[%clk 0:02:52.7]} 1-0

[Event "*** Titled Tuesday Blitz"]
[Site "Chess.com"]
[Date "2021.02.09"]
[Round "2"]
[White "2nd_life"]
[Black "Sofiia_Hryzlova"]
[Result "1-0"]
[WhiteElo "2464"]
[BlackElo "2256"]
[TimeControl "180+1"]
[EndTime "10:14:27 PST"]
[Termination "2nd_life won by resignation"]

1. e4 {[%clk 0:03:00.9]} 1... e6 {[%clk 0:02:56.3]} 2. Nf3 {[%clk 0:02:57.1]}
2... c5 {[%clk 0:02:53.9]} 3. d4 {[%clk 0:02:54.1]} 3... cxd4 {[%clk 0:02:53.6]}
4. Nxd4 {[%clk 0:02:55]} 4... Nc6 {[%clk 0:02:53.8]} 5. Nc3 {[%clk 0:02:54.7]}
5... Nf6 {[%clk 0:02:52.2]} 6. Ndb5 {[%clk 0:02:51.7]} 6... d6 {[%clk
0:02:50.1]} 7. Bf4 {[%clk 0:02:51]} 7... e5 {[%clk 0:02:49]} 8. Bg5 {[%clk
0:02:51.2]} 8... a6 {[%clk 0:02:49]} 9. Na3 {[%clk 0:02:51.3]} 9... b5 {[%clk
0:02:48.7]} 10. Bxf6 {[%clk 0:02:51.2]} 10... gxf6 {[%clk 0:02:46.1]} 11. Nd5
{[%clk 0:02:51.2]} 11... Be7 {[%clk 0:02:43.6]} 12. Bd3 {[%clk 0:02:42.3]} 12...
Be6 {[%clk 0:02:39.7]} 13. O-O {[%clk 0:02:36.9]} 13... f5 {[%clk 0:02:29.6]}
14. Nxe7 {[%clk 0:02:32.3]} 14... Nxe7 {[%clk 0:02:29.1]} 15. exf5 {[%clk
0:02:30.6]} 15... Nxf5 {[%clk 0:02:26.4]} 16. Bxf5 {[%clk 0:02:17.9]} 16... Bxf5
{[%clk 0:02:24.6]} 17. f4 {[%clk 0:02:18]} 17... e4 {[%clk 0:02:14.6]} 18. Qd5
{[%clk 0:02:10.6]} 18... Qc8 {[%clk 0:01:53.5]} 19. Qxd6 {[%clk 0:02:06.9]}
19... Ra7 {[%clk 0:01:40.7]} 20. Qe5+ {[%clk 0:02:04.4]} 20... Kd7 {[%clk
0:01:29.6]} 21. Qxf5+ {[%clk 0:02:03.6]} 1-0

[Event "*** Titled Tuesday Blitz"]
[Site "Chess.com"]
[Date "2021.02.09"]
[Round "2"]
[White "tan275"]
[Black "Leo_C"]
[Result "1-0"]
[WhiteElo "2241"]
[BlackElo "2435"]
[TimeControl "180+1"]
[EndTime "10:14:47 PST"]
[Termination "tan275 won by checkmate"]

1. d4 {[%clk 0:03:00.9]} 1... d5 {[%clk 0:02:52]} 2. c4 {[%clk 0:03:00.5]} 2...
e6 {[%clk 0:02:51.6]} 3. Nf3 {[%clk 0:03:00.1]} 3... c6 {[%clk 0:02:51.5]} 4. e3
{[%clk 0:02:58.6]} 4... Nf6 {[%clk 0:02:50.8]} 5. b3 {[%clk 0:02:58.7]} 5... c5
{[%clk 0:02:46.8]} 6. Bb2 {[%clk 0:02:57.9]} 6... Nc6 {[%clk 0:02:46.3]} 7. Bd3
{[%clk 0:02:55.8]} 7... cxd4 {[%clk 0:02:45.3]} 8. Nxd4 {[%clk 0:02:46.5]} 8...
Nxd4 {[%clk 0:02:39.4]} 9. Bxd4 {[%clk 0:02:45.1]} 9... Bb4+ {[%clk 0:02:37.7]}
10. Nd2 {[%clk 0:02:40.3]} 10... O-O {[%clk 0:02:33.5]} 11. O-O {[%clk
0:02:38.9]} 11... b6 {[%clk 0:02:32.6]} 12. cxd5 {[%clk 0:02:27.4]} 12... exd5
{[%clk 0:02:22.9]} 13. Nf3 {[%clk 0:02:22.5]} 13... Bd6 {[%clk 0:02:21.1]} 14.
h3 {[%clk 0:02:20.5]} 14... Bb7 {[%clk 0:02:16.2]} 15. Bc2 {[%clk 0:02:16.3]}
15... Ne4 {[%clk 0:02:14.6]} 16. Qd3 {[%clk 0:02:10.7]} 16... a5 {[%clk
0:02:14.2]} 17. Bb2 {[%clk 0:02:05.3]} 17... f6 {[%clk 0:01:55.1]} 18. Rad1
{[%clk 0:01:51.9]} 18... Kh8 {[%clk 0:01:52.8]} 19. Nd4 {[%clk 0:01:48.2]} 19...
Ba6 {[%clk 0:01:31.2]} 20. Nb5 {[%clk 0:01:46.5]} 20... Nc5 {[%clk 0:01:28.1]}
21. Qxh7# {[%clk 0:01:44.6]} 1-0

[Event "*** Titled Tuesday Blitz"]
[Site "Chess.com"]
[Date "2021.02.09"]
[Round "2"]
[White "chessablanca"]
[Black "Elshan1985"]
[Result "0-1"]
[WhiteElo "2503"]
[BlackElo "2808"]
[TimeControl "180+1"]
[EndTime "10:15:04 PST"]
[Termination "Elshan1985 won by resignation"]

1. Nf3 {[%clk 0:03:00.9]} 1... Nf6 {[%clk 0:02:59.9]} 2. d4 {[%clk 0:03:00.9]}
2... d5 {[%clk 0:02:59.8]} 3. c4 {[%clk 0:03:00.5]} 3... e6 {[%clk 0:02:59.8]}
4. Nc3 {[%clk 0:02:59.9]} 4... dxc4 {[%clk 0:02:56.2]} 5. e3 {[%clk 0:02:58.4]}
5... a6 {[%clk 0:02:55.8]} 6. Bxc4 {[%clk 0:02:57.9]} 6... b5 {[%clk 0:02:56.3]}
7. Bd3 {[%clk 0:02:58.2]} 7... Bb7 {[%clk 0:02:56.6]} 8. O-O {[%clk 0:02:57.5]}
8... c5 {[%clk 0:02:57.1]} 9. dxc5 {[%clk 0:02:34.2]} 9... Bxc5 {[%clk 0:02:58]}
10. Bc2 {[%clk 0:02:33.9]} 10... Nbd7 {[%clk 0:02:51.6]} 11. Nd4 {[%clk
0:02:16.9]} 11... Qb6 {[%clk 0:02:47.8]} 12. Nce2 {[%clk 0:02:15]} 12... Rd8
{[%clk 0:02:44.8]} 13. Qe1 {[%clk 0:02:11.4]} 13... e5 {[%clk 0:02:36.6]} 14.
Nf5 {[%clk 0:02:09.6]} 14... g6 {[%clk 0:02:36.4]} 15. Nfg3 {[%clk 0:02:07.4]}
15... h5 {[%clk 0:02:35.8]} 16. h4 {[%clk 0:01:59.6]} 16... Ng4 {[%clk
0:02:31.1]} 17. Ne4 {[%clk 0:01:50.7]} 17... Be7 {[%clk 0:02:22.7]} 18. g3
{[%clk 0:01:38.7]} 18... f5 {[%clk 0:02:09.7]} 19. N4c3 {[%clk 0:01:35.9]} 19...
b4 {[%clk 0:02:08.1]} 20. f3 {[%clk 0:01:10.7]} 20... Nxe3 {[%clk 0:01:47.9]}
21. Qf2 {[%clk 0:01:10.1]} 21... Nxc2 {[%clk 0:01:46.3]} 0-1

[Event "*** Titled Tuesday Blitz"]
[Site "Chess.com"]
[Date "2021.02.09"]
[Round "2"]
[White "Chessbard1972"]
[Black "FMalexhdez"]
[Result "1-0"]
[WhiteElo "2408"]
[BlackElo "2174"]
[TimeControl "180+1"]
[EndTime "10:15:04 PST"]
[Termination "Chessbard1972 won by resignation"]

1. d4 {[%clk 0:02:59.6]} 1... Nf6 {[%clk 0:02:58]} 2. Nf3 {[%clk 0:02:58.9]}
2... e6 {[%clk 0:02:57.3]} 3. c4 {[%clk 0:02:58.2]} 3... d5 {[%clk 0:02:55.2]}
4. Bg5 {[%clk 0:02:56.9]} 4... Be7 {[%clk 0:02:55.2]} 5. e3 {[%clk 0:02:54.7]}
5... O-O {[%clk 0:02:54.7]} 6. Nc3 {[%clk 0:02:53.9]} 6... b6 {[%clk 0:02:53.1]}
7. cxd5 {[%clk 0:02:52.7]} 7... exd5 {[%clk 0:02:52.6]} 8. Bd3 {[%clk 0:02:49]}
8... c5 {[%clk 0:02:45.9]} 9. O-O {[%clk 0:02:42]} 9... Nbd7 {[%clk 0:02:41.5]}
10. Ne5 {[%clk 0:02:35.1]} 10... Bb7 {[%clk 0:02:35.2]} 11. f4 {[%clk
0:02:33.9]} 11... Ne4 {[%clk 0:02:29.3]} 12. Bxe7 {[%clk 0:02:28]} 12... Qxe7
{[%clk 0:02:26.9]} 13. Qc2 {[%clk 0:02:08]} 13... f5 {[%clk 0:02:25.4]} 14. Nxe4
{[%clk 0:01:53.8]} 14... dxe4 {[%clk 0:02:15.5]} 15. Bc4+ {[%clk 0:01:53]} 15...
Kh8 {[%clk 0:02:15.1]} 16. Rad1 {[%clk 0:01:37.4]} 16... cxd4 {[%clk 0:02:12]}
17. Nxd7 {[%clk 0:01:25.4]} 17... d3 {[%clk 0:02:00.5]} 18. Qa4 {[%clk
0:01:17.7]} 18... Rfd8 {[%clk 0:01:43.9]} 19. Ne5 {[%clk 0:01:16]} 19... a6
{[%clk 0:01:37.5]} 20. Nf7+ {[%clk 0:01:14.6]} 1-0

[Event "*** Titled Tuesday Blitz"]
[Site "Chess.com"]
[Date "2021.02.09"]
[Round "2"]
[White "rachidhuilda"]
[Black "biostatistician"]
[Result "0-1"]
[WhiteElo "2298"]
[BlackElo "2624"]
[TimeControl "180+1"]
[EndTime "10:15:05 PST"]
[Termination "biostatistician won by resignation"]

1. d4 {[%clk 0:03:00.9]} 1... Nf6 {[%clk 0:02:59.5]} 2. Bg5 {[%clk 0:03:00.2]}
2... Ne4 {[%clk 0:02:59.4]} 3. Bf4 {[%clk 0:03:00.3]} 3... d5 {[%clk 0:02:59.9]}
4. e3 {[%clk 0:03:00.2]} 4... Bf5 {[%clk 0:03:00]} 5. Bd3 {[%clk 0:02:59.9]}
5... e6 {[%clk 0:03:00.4]} 6. Ne2 {[%clk 0:02:45.5]} 6... Nd6 {[%clk 0:03:00.2]}
7. O-O {[%clk 0:02:42.5]} 7... Bxd3 {[%clk 0:02:59.6]} 8. cxd3 {[%clk
0:02:41.1]} 8... Be7 {[%clk 0:02:59.8]} 9. Nbc3 {[%clk 0:02:40.5]} 9... O-O
{[%clk 0:02:59.4]} 10. Rc1 {[%clk 0:02:40.2]} 10... Nd7 {[%clk 0:02:57.7]} 11.
h3 {[%clk 0:02:40.4]} 11... a6 {[%clk 0:02:52.4]} 12. a3 {[%clk 0:02:40.4]}
12... Rc8 {[%clk 0:02:50]} 13. b4 {[%clk 0:02:40.5]} 13... c6 {[%clk 0:02:42.5]}
14. Na4 {[%clk 0:02:39.2]} 14... b5 {[%clk 0:02:42.8]} 15. Bxd6 {[%clk
0:02:34.5]} 15... Bxd6 {[%clk 0:02:41.7]} 16. Nc5 {[%clk 0:02:34.3]} 16... Nxc5
{[%clk 0:02:38.7]} 17. dxc5 {[%clk 0:02:34.4]} 17... Bb8 {[%clk 0:02:38.2]} 18.
d4 {[%clk 0:02:34.6]} 18... e5 {[%clk 0:02:38]} 19. f4 {[%clk 0:02:15.3]} 19...
exd4 {[%clk 0:02:35.1]} 20. exd4 {[%clk 0:02:14.9]} 20... Re8 {[%clk 0:02:35.5]}
21. Qd3 {[%clk 0:02:05.8]} 21... Re4 {[%clk 0:02:34.6]} 22. Ng3 {[%clk
0:01:35.8]} 22... Rxf4 {[%clk 0:02:30.8]} 23. Nf5 {[%clk 0:01:26.8]} 23... Qg5
{[%clk 0:02:24.2]} 24. Rxf4 {[%clk 0:01:17.3]} 24... Qxf4 {[%clk 0:02:25.1]} 25.
Rf1 {[%clk 0:01:12.2]} 25... Qh2+ {[%clk 0:02:25.4]} 26. Kf2 {[%clk 0:01:12.3]}
26... Re8 {[%clk 0:02:25.1]} 27. Ng3 {[%clk 0:01:02.5]} 27... Bxg3+ {[%clk
0:02:14.8]} 28. Qxg3 {[%clk 0:01:02.2]} 28... Re2+ {[%clk 0:02:15.3]} 0-1

[Event "*** Titled Tuesday Blitz"]
[Site "Chess.com"]
[Date "2021.02.09"]
[Round "2"]
[White "Sanyura"]
[Black "MillyNeuf"]
[Result "1-0"]
[WhiteElo "2647"]
[BlackElo "2320"]
[TimeControl "180+1"]
[EndTime "10:15:05 PST"]
[Termination "Sanyura won by resignation"]

1. e4 {[%clk 0:02:54.5]} 1... c5 {[%clk 0:02:59.9]} 2. Nf3 {[%clk 0:02:52.3]}
2... d6 {[%clk 0:03:00.1]} 3. d4 {[%clk 0:02:53]} 3... cxd4 {[%clk 0:03:01]} 4.
Nxd4 {[%clk 0:02:53.9]} 4... Nf6 {[%clk 0:03:01.4]} 5. Nc3 {[%clk 0:02:54.3]}
5... g6 {[%clk 0:03:02]} 6. g3 {[%clk 0:02:54.7]} 6... Bg7 {[%clk 0:03:01.5]} 7.
Bg2 {[%clk 0:02:54.9]} 7... O-O {[%clk 0:03:02.1]} 8. O-O {[%clk 0:02:55.5]}
8... Nc6 {[%clk 0:03:02.6]} 9. h3 {[%clk 0:02:55.8]} 9... Bd7 {[%clk 0:03:00.5]}
10. Be3 {[%clk 0:02:55.2]} 10... Rc8 {[%clk 0:03:00.2]} 11. Nce2 {[%clk
0:02:49.6]} 11... Ne5 {[%clk 0:02:56.2]} 12. b3 {[%clk 0:02:49.5]} 12... a6
{[%clk 0:02:48.7]} 13. c4 {[%clk 0:02:45.6]} 13... Nc6 {[%clk 0:02:42.7]} 14.
Rc1 {[%clk 0:02:44.3]} 14... Nxd4 {[%clk 0:02:42.4]} 15. Nxd4 {[%clk 0:02:45.1]}
15... Bc6 {[%clk 0:02:35.7]} 16. Nxc6 {[%clk 0:02:32.7]} 16... bxc6 {[%clk
0:02:36.6]} 17. Qd2 {[%clk 0:02:30.4]} 17... Nd7 {[%clk 0:02:33.5]} 18. Rfd1
{[%clk 0:02:29.2]} 18... Qc7 {[%clk 0:02:21.6]} 19. Bh6 {[%clk 0:02:21]} 19...
Bxh6 {[%clk 0:02:20.8]} 20. Qxh6 {[%clk 0:02:21.9]} 20... c5 {[%clk 0:02:10.3]}
21. h4 {[%clk 0:02:20.5]} 21... e5 {[%clk 0:02:04.4]} 22. Qd2 {[%clk 0:02:14.5]}
22... Rfd8 {[%clk 0:01:42.1]} 23. Qxd6 {[%clk 0:02:13.6]} 23... Qxd6 {[%clk
0:01:42.7]} 24. Rxd6 {[%clk 0:02:14.2]} 24... Nb8 {[%clk 0:01:43.6]} 25. Rcd1
{[%clk 0:02:13]} 25... Rxd6 {[%clk 0:01:38]} 26. Rxd6 {[%clk 0:02:13.9]} 26...
Kf8 {[%clk 0:01:36.8]} 27. Bh3 {[%clk 0:02:11.8]} 27... Re8 {[%clk 0:01:30.4]}
28. Rd5 {[%clk 0:02:08.2]} 1-0

[Event "*** Titled Tuesday Blitz"]
[Site "Chess.com"]
[Date "2021.02.09"]
[Round "2"]
[White "niki_2003"]
[Black "MartinMatthiesen"]
[Result "0-1"]
[WhiteElo "2060"]
[BlackElo "2380"]
[TimeControl "180+1"]
[EndTime "10:15:09 PST"]
[Termination "MartinMatthiesen won by checkmate"]

1. e4 {[%clk 0:03:00.9]} 1... c6 {[%clk 0:02:58.9]} 2. d4 {[%clk 0:03:00.4]}
2... d5 {[%clk 0:02:58.8]} 3. exd5 {[%clk 0:03:00.6]} 3... cxd5 {[%clk 0:02:59]}
4. c3 {[%clk 0:03:00.9]} 4... Nc6 {[%clk 0:02:54.2]} 5. Bd3 {[%clk 0:03:01.3]}
5... Nf6 {[%clk 0:02:52.5]} 6. Nf3 {[%clk 0:03:01.5]} 6... Bg4 {[%clk
0:02:51.7]} 7. Be3 {[%clk 0:03:01.7]} 7... e6 {[%clk 0:02:50.5]} 8. Nbd2 {[%clk
0:03:01.6]} 8... Bd6 {[%clk 0:02:50]} 9. h3 {[%clk 0:03:01.6]} 9... Bh5 {[%clk
0:02:49.3]} 10. O-O {[%clk 0:03:01.1]} 10... O-O {[%clk 0:02:47.4]} 11. Rc1
{[%clk 0:03:00.4]} 11... Rb8 {[%clk 0:02:43.6]} 12. a3 {[%clk 0:02:53.2]} 12...
Bg6 {[%clk 0:02:41.5]} 13. Bb1 {[%clk 0:02:47]} 13... Bxb1 {[%clk 0:02:39]} 14.
Rxb1 {[%clk 0:02:45.9]} 14... Qc7 {[%clk 0:02:37.7]} 15. b4 {[%clk 0:02:45.9]}
15... Rfc8 {[%clk 0:02:36]} 16. Qb3 {[%clk 0:02:42.1]} 16... Ne7 {[%clk
0:02:20.9]} 17. Rfc1 {[%clk 0:02:40.6]} 17... Nf5 {[%clk 0:02:20]} 18. c4 {[%clk
0:02:32.8]} 18... dxc4 {[%clk 0:02:15.2]} 19. Nxc4 {[%clk 0:02:29.6]} 19... Nd5
{[%clk 0:01:55.1]} 20. Nxd6 {[%clk 0:02:01.2]} 20... Qxd6 {[%clk 0:01:53.9]} 21.
Rxc8+ {[%clk 0:01:59.8]} 21... Rxc8 {[%clk 0:01:54]} 22. g4 {[%clk 0:01:52.8]}
22... Nfxe3 {[%clk 0:01:52.1]} 23. fxe3 {[%clk 0:01:52.4]} 23... Qg3+ {[%clk
0:01:51.9]} 24. Kh1 {[%clk 0:01:47.2]} 24... Qxf3+ {[%clk 0:01:51.2]} 25. Kh2
{[%clk 0:01:47.6]} 25... Nxe3 {[%clk 0:01:50.3]} 26. Rg1 {[%clk 0:01:42]} 26...
Nxg4+ {[%clk 0:01:49]} 27. Rxg4 {[%clk 0:01:40.2]} 27... Qxb3 {[%clk 0:01:48.5]}
28. Rg2 {[%clk 0:01:39.4]} 28... Rc2 {[%clk 0:01:47.5]} 29. Rxc2 {[%clk
0:01:38.2]} 29... Qxc2+ {[%clk 0:01:47.3]} 30. Kg1 {[%clk 0:01:39.1]} 30... f6
{[%clk 0:01:45.3]} 31. Kh1 {[%clk 0:01:40]} 31... e5 {[%clk 0:01:45.4]} 32. h4
{[%clk 0:01:40.9]} 32... e4 {[%clk 0:01:45.3]} 33. h5 {[%clk 0:01:41.8]} 33...
e3 {[%clk 0:01:45.4]} 34. h6 {[%clk 0:01:42.7]} 34... e2 {[%clk 0:01:45.5]} 35.
hxg7 {[%clk 0:01:42.6]} 35... e1=Q# {[%clk 0:01:45.3]} 0-1

[Event "*** Titled Tuesday Blitz"]
[Site "Chess.com"]
[Date "2021.02.09"]
[Round "2"]
[White "kikydu96"]
[Black "Guzman70"]
[Result "1-0"]
[WhiteElo "2611"]
[BlackElo "2261"]
[TimeControl "180+1"]
[EndTime "10:15:13 PST"]
[Termination "kikydu96 won by resignation"]

1. e4 {[%clk 0:03:00.9]} 1... g6 {[%clk 0:02:59.4]} 2. d4 {[%clk 0:03:00.8]}
2... Bg7 {[%clk 0:03:00]} 3. Nc3 {[%clk 0:03:01.1]} 3... d6 {[%clk 0:03:00]} 4.
Be3 {[%clk 0:03:01.1]} 4... a6 {[%clk 0:02:59.9]} 5. Qd2 {[%clk 0:03:01.2]} 5...
b5 {[%clk 0:02:58.4]} 6. O-O-O {[%clk 0:03:01.5]} 6... Bb7 {[%clk 0:02:43.3]} 7.
f3 {[%clk 0:03:01.3]} 7... Nd7 {[%clk 0:02:43]} 8. h4 {[%clk 0:03:00.9]} 8... h5
{[%clk 0:02:43]} 9. Nh3 {[%clk 0:03:01.2]} 9... Ngf6 {[%clk 0:02:42.4]} 10. Ng5
{[%clk 0:03:00.8]} 10... Nb6 {[%clk 0:02:39.1]} 11. Kb1 {[%clk 0:02:51.5]} 11...
Nc4 {[%clk 0:02:35.9]} 12. Bxc4 {[%clk 0:02:49.8]} 12... bxc4 {[%clk 0:02:36.8]}
13. Qe2 {[%clk 0:02:46.1]} 13... O-O {[%clk 0:02:24.3]} 14. Qxc4 {[%clk
0:02:45.3]} 14... a5 {[%clk 0:02:24.6]} 15. e5 {[%clk 0:02:42.4]} 15... Ne8
{[%clk 0:02:01.9]} 16. e6 {[%clk 0:02:26.5]} 16... f5 {[%clk 0:01:51.5]} 17. g4
{[%clk 0:02:16.8]} 17... fxg4 {[%clk 0:01:48.1]} 18. fxg4 {[%clk 0:02:16.1]}
18... Nf6 {[%clk 0:01:48.3]} 19. gxh5 {[%clk 0:02:13.1]} 19... Nxh5 {[%clk
0:01:48.3]} 20. Qd3 {[%clk 0:02:05.6]} 20... Rf5 {[%clk 0:01:42.6]} 21. Rhg1
{[%clk 0:02:01.4]} 21... a4 {[%clk 0:01:27.1]} 22. Nf7 {[%clk 0:01:55.2]} 22...
Qf8 {[%clk 0:01:20.3]} 23. Rxg6 {[%clk 0:01:52]} 23... Rfa5 {[%clk 0:01:18.6]}
24. Rdg1 {[%clk 0:01:44.4]} 24... a3 {[%clk 0:01:17.5]} 25. Rh6 {[%clk
0:01:41.3]} 1-0

[Event "*** Titled Tuesday Blitz"]
[Site "Chess.com"]
[Date "2021.02.09"]
[Round "2"]
[White "Vincent_Vega95"]
[Black "Kislov_Oleg"]
[Result "1-0"]
[WhiteElo "2726"]
[BlackElo "2479"]
[TimeControl "180+1"]
[EndTime "10:15:14 PST"]
[Termination "Vincent_Vega95 won by resignation"]

1. d4 {[%clk 0:03:00.9]} 1... Nf6 {[%clk 0:02:59.1]} 2. c4 {[%clk 0:03:01.5]}
2... e6 {[%clk 0:02:59.3]} 3. Nc3 {[%clk 0:03:01.9]} 3... Bb4 {[%clk 0:02:58.9]}
4. e3 {[%clk 0:03:02.5]} 4... d5 {[%clk 0:02:58.9]} 5. a3 {[%clk 0:03:01.7]}
5... Bxc3+ {[%clk 0:02:58.6]} 6. bxc3 {[%clk 0:03:02.6]} 6... c5 {[%clk
0:02:58.7]} 7. cxd5 {[%clk 0:03:01]} 7... exd5 {[%clk 0:02:58]} 8. Bd3 {[%clk
0:03:01.4]} 8... Qa5 {[%clk 0:02:56.1]} 9. Ne2 {[%clk 0:02:58.1]} 9... O-O
{[%clk 0:02:40]} 10. O-O {[%clk 0:02:56.6]} 10... b6 {[%clk 0:02:27.1]} 11. Bd2
{[%clk 0:02:54.9]} 11... c4 {[%clk 0:02:23.4]} 12. Bc2 {[%clk 0:02:53.6]} 12...
Re8 {[%clk 0:02:15]} 13. f3 {[%clk 0:02:52.8]} 13... Bb7 {[%clk 0:02:02.3]} 14.
Qe1 {[%clk 0:02:51.2]} 14... Nbd7 {[%clk 0:02:01.9]} 15. Qh4 {[%clk 0:02:50.2]}
15... b5 {[%clk 0:01:54.2]} 16. a4 {[%clk 0:02:44]} 16... Nb6 {[%clk 0:01:42.7]}
17. g4 {[%clk 0:02:27.6]} 17... h6 {[%clk 0:01:33.4]} 18. g5 {[%clk 0:02:19.3]}
18... hxg5 {[%clk 0:01:33]} 19. Qxg5 {[%clk 0:02:20.2]} 19... bxa4 {[%clk
0:01:17.1]} 20. Kh1 {[%clk 0:02:17.4]} 20... Re6 {[%clk 0:01:16.9]} 21. Nf4
{[%clk 0:02:02.2]} 21... Rd6 {[%clk 0:01:09.1]} 22. Rg1 {[%clk 0:01:56]} 22...
Ne8 {[%clk 0:01:06.5]} 23. Qh5 {[%clk 0:01:52.1]} 23... Rh6 {[%clk 0:01:04.5]}
24. Qxh6 {[%clk 0:01:51.2]} 1-0